bitfinex/quotes_SOLUSD_20240920
["timestamp","ask_amount","ask_price","bid_price","bid_amount"]
[1726845268359,8.4705047,147.58,147.54,22.1296]
[1726845268563,6.7763,147.58,147.54,22.1296]
[1726845268875,40.712884,147.62,147.54,22.1296]
[1726845268876,30.553984,147.56,147.54,16.0315]
[1726845269078,30.553984,147.56,147.5,21.9263]
[1726845269287,1.69448403,147.55,147.5,21.9263]
[1726845269578,1.69448403,147.55,147.5,22.0271003]
[1726845270184,30.553984,147.56,147.5,22.0271003]
[1726845270681,30.552884,147.58,147.5,72.0271003]
[1726845271765,23.776884,147.58,147.51,1.29051611]
[1726845271967,30.553084,147.58,147.5,72.0271003]
[1726845272473,6.7765,147.57,147.5,72.0271003]
[1726845272980,6.778,147.54,147.5,22.0271003]
[1726845273167,32.24996944,147.53,147.5,22.0271003]
[1726845273483,1.69484495,147.52,147.5,15.8765003]
[1726845274384,30.555384,147.53,147.5,15.8765003]
[1726845275162,23.776884,147.53,147.5,15.8765003]
[1726845276187,30.555284,147.53,147.5,15.8765003]
[1726845276691,30.556084,147.51,147.5,0.1008003]
[1726845278488,23.776884,147.51,147.5,0.1008003]
[1726845278694,6.7786,147.53,147.5,0.1008003]
[1726845279066,6.7792,147.51,147.5,0.1008003]
[1726845279890,6.7788,147.52,147.5,0.1008003]
[1726845280064,32.25109689,147.51,147.5,0.1008003]
[1726845280266,32.25160125,147.51,147.5,0.1008003]
[1726845281389,30.556084,147.51,147.5,0.1008003]
[1726845282278,32.25159726,147.51,147.5,0.1008003]
[1726845283492,30.556084,147.51,147.5,0.1008003]
[1726845285976,32.25151685,147.51,147.5,0.1008003]
[1726845286180,71.246084,147.51,147.5,0.1008003]
[1726845287073,78.30265269,147.51,147.5,0.1008003]
[1726845287489,79.99817826,147.51,147.5,0.1008003]
[1726845288283,78.30265269,147.51,147.5,0.1008003]
[1726845288588,79.99817479,147.51,147.5,0.1008003]
[1726845289293,78.30265269,147.51,147.5,0.1008003]
[1726845290687,79.99808743,147.51,147.5,0.1008003]
[1726845295895,37.61265269,147.51,147.5,0.1008003]
[1726845296779,30.556084,147.51,147.5,0.1008003]
[1726845298189,23.776884,147.51,147.5,0.1008003]
[1726845298383,25.47202259,147.51,147.5,0.1008003]
[1726845298810,32.25122259,147.51,147.5,0.1008003]
[1726845300401,23.776884,147.51,147.5,0.1008003]
[1726845300612,7.05807704,147.54,147.5,6.6413003]
[1726845300911,1.69474346,147.53,147.5,6.6413003]
[1726845301413,1.69478803,147.52,147.5,6.6413003]
[1726845302002,23.776884,147.52,147.5,6.6413003]
[1726845303086,23.776884,147.53,147.5,6.6413003]
[1726845303292,23.776884,147.51,147.5,0.1008003]
[1726845303704,30.556084,147.51,147.5,0.1008003]
[1726845307001,32.25132501,147.51,147.5,0.1008003]
[1726845307199,32.25132501,147.51,147.46,0.4231094]
[1726845307200,30.557884,147.47,147.46,0.4231094]
[1726845307508,32.2535725,147.47,147.46,0.4231094]
[1726845307711,32.2535725,147.47,147.42,0.2529553]
[1726845307900,30.559684,147.43,147.42,0.2529553]
[1726845308493,32.25598671,147.43,147.42,0.2529553]
[1726845308797,30.561984,147.38,147.37,0.4231094]
[1726845311231,30.561984,147.38,147.33,0.2529553]
[1726845311232,30.563884,147.34,147.33,0.2529553]
[1726845311394,30.563884,147.34,147.25,22.332]
[1726845311395,6.789,147.3,147.28,0.42053]
[1726845311594,64.466884,147.34,147.28,0.42053]
[1726845311595,25.47459867,147.29,147.28,0.42053]
[1726845311790,30.566184,147.29,147.28,0.42053]
[1726845312303,32.26400695,147.29,147.28,0.42053]
[1726845312505,23.776884,147.29,147.28,0.42053]
[1726845312813,30.566184,147.29,147.28,0.42053]
[1726845313803,23.776884,147.29,147.24,0.2749287]
[1726845314024,30.567984,147.25,147.24,0.2749287]
[1726845314702,32.26667355,147.25,147.24,0.2749287]
[1726845314901,32.26667355,147.25,147.21,0.1006239]
[1726845314902,23.776884,147.22,147.21,0.1006239]
[1726845315131,20.0,147.29,147.21,0.1006239]
[1726845315311,23.776884,147.26,147.21,0.1006239]
[1726845315807,26.14827669,147.32,147.21,0.1006239]
[1726845316008,57.662,147.31,147.21,0.1006239]
[1726845316206,1.69836851,147.3,147.21,0.1006239]
[1726845316424,57.662,147.31,147.21,0.1006239]
[1726845316722,1.69846212,147.29,147.21,0.1006239]
[1726845317114,23.776884,147.28,147.21,0.1006239]
[1726845317425,30.567584,147.26,147.21,0.1006239]
[1726845317727,23.776884,147.24,147.21,0.1006239]
[1726845318221,1.69824317,147.23,147.21,0.1006239]
[1726845318923,23.776884,147.24,147.21,0.1006239]
[1726845319423,7.06922214,147.33,147.22,6.1941]
[1726845319635,1.6977813,147.32,147.22,6.1941]
[1726845320002,6.7897,147.29,147.22,6.1941]
[1726845320226,6.7907,147.26,147.22,6.1941]
[1726845320430,8.48936685,147.25,147.21,15.2900239]
[1726845320731,6.7917,147.24,147.21,0.1006239]
[1726845320906,1.69857409,147.23,147.21,0.1006239]
[1726845321105,23.776884,147.22,147.21,0.1006239]
[1726845321507,25.47555849,147.22,147.21,0.1006239]
[1726845321737,23.776884,147.22,147.21,0.1006239]
[1726845322621,1.69852516,147.23,147.21,0.1006239]
[1726845322821,13.86452672,147.26,147.21,0.1006239]
[1726845322822,1.69828351,147.25,147.21,0.1006239]
[1726845323118,6.7903,147.27,147.21,0.1006239]
[1726845323535,13.86185769,147.29,147.21,0.1006239]
[1726845323831,7.07225769,147.29,147.21,0.1006239]
[1726845324007,6.7884,147.31,147.21,21.39977408]
[1726845324208,6.788,147.32,147.21,20.1006239]
[1726845324408,6.788,147.32,147.24,6.4382]
[1726845325010,7.07017614,147.33,147.24,6.4382]
[1726845325231,1.45644764,147.36,147.25,20.0]
[1726845325419,0.2749287,147.36,147.25,20.0]
[1726845325612,6.7878,147.33,147.25,20.0]
[1726845325812,1.69747516,147.32,147.25,20.0]
[1726845326633,23.776884,147.31,147.25,20.0]
[1726845326927,1.69739446,147.32,147.25,20.0]
[1726845327121,7.34413935,147.36,147.26,26.61925752]
[1726845327319,1.69721848,147.35,147.27,20.0]
[1726845327517,7.34413935,147.36,147.27,20.0]
[1726845327829,0.2749287,147.36,147.27,20.0]
[1726845328429,7.06809919,147.38,147.3,21.8164]
[1726845328615,7.06809919,147.38,147.33,26.61925752]
[1726845328941,0.2749287,147.41,147.34,20.0]
[1726845329450,0.2749287,147.41,147.36,20.0]
[1726845329920,1.07875007,147.4,147.31,20.0]
[1726845330238,0.1624221,147.41,147.32,1.35733559]
[1726845330735,6.7846,147.4,147.31,20.0]
[1726845330950,24.85563407,147.39,147.31,20.0]
[1726845331249,6.7851,147.38,147.31,20.0]
[1726845331537,23.776884,147.36,147.31,20.0]
[1726845331738,1.07875007,147.35,147.31,20.0]
[1726845332315,23.776884,147.34,147.3,21.8164]
[1726845332621,57.8126221,147.41,147.3,21.8164]
[1726845332622,23.776884,147.32,147.3,21.8164]
[1726845332839,23.776884,147.32,147.21,26.71988142]
[1726845332840,1.07875007,147.31,147.24,21.4468]
[1726845333154,1.07875007,147.3,147.24,21.4468]
[1726845333450,23.776884,147.29,147.24,21.4468]
[1726845333619,1.07875007,147.28,147.24,21.4468]
[1726845333825,23.776884,147.29,147.24,21.4468]
[1726845334033,23.776884,147.31,147.24,21.4468]
[1726845334251,24.85563407,147.31,147.24,21.4468]
[1726845334627,23.776884,147.29,147.24,21.4468]
[1726845334813,30.565584,147.31,147.24,21.4468]
[1726845335013,23.776884,147.31,147.24,21.4468]
[1726845336244,1.07875007,147.3,147.24,21.4468]
[1726845336447,24.85563407,147.29,147.24,21.4468]
[1726845336939,16.9668,147.35,147.24,21.4468]
[1726845336940,23.776884,147.27,147.24,21.4468]
[1726845337323,23.776884,147.25,147.21,0.1006239]
[1726845338541,23.776884,147.26,147.21,0.1006239]
[1726845338753,23.776884,147.24,147.21,0.1006239]
[1726845339651,30.568484,147.24,147.21,0.1006239]
[1726845339836,23.776884,147.24,147.21,0.1006239]
[1726845340141,7.07323706,147.26,147.21,0.1006239]
[1726845340142,23.776884,147.26,147.21,0.1006239]
[1726845340331,24.85563407,147.24,147.21,0.1006239]
[1726845340533,23.776884,147.24,147.21,0.1006239]
[1726845341140,40.69,147.33,147.21,0.1006239]
[1726845341450,6.79,147.28,147.21,0.1006239]
[1726845341629,7.0726916,147.29,147.21,0.1006239]
[1726845341943,57.658,147.34,147.21,0.1006239]
[1726845342150,6.7898,147.28,147.21,0.1006239]
[1726845342646,7.07238198,147.3,147.21,0.1006239]
[1726845342858,6.7916,147.24,147.21,0.1006239]
[1726845343022,6.7907,147.26,147.21,0.1006239]
[1726845343523,24.85563407,147.25,147.21,0.1006239]
[1726845343722,23.776884,147.25,147.21,0.1006239]
[1726845344141,24.85563407,147.24,147.21,0.1006239]
[1726845344564,23.776884,147.24,147.21,0.1006239]
[1726845345052,7.07238198,147.3,147.21,0.1006239]
[1726845345256,13.86128198,147.3,147.21,0.1006239]
[1726845345431,7.07238198,147.3,147.21,0.1006239]
[1726845345621,6.7899,147.28,147.21,0.1006239]
[1726845345826,6.7894,147.29,147.21,0.1006239]
[1726845346039,7.07238198,147.3,147.21,70.1006239]
[1726845346344,7.86825007,147.29,147.21,20.1006239]
[1726845346550,6.7898,147.28,147.21,20.1006239]
[1726845346731,6.7887,147.31,147.21,20.1006239]
[1726845346921,6.7889,147.3,147.21,20.1006239]
[1726845347123,7.06251839,147.32,147.21,70.1006239]
[1726845347124,1.07875007,147.29,147.21,70.1006239]
[1726845347346,6.7894,147.29,147.21,20.1006239]
[1726845347543,7.86865007,147.28,147.21,20.1006239]
[1726845347853,1.07875007,147.27,147.21,20.1006239]
[1726845348546,23.776884,147.26,147.21,0.1006239]
[1726845348742,23.776884,147.24,147.21,0.1006239]
[1726845350633,30.568484,147.24,147.21,0.1006239]
[1726845351725,23.776884,147.24,147.21,0.1006239]
[1726845351922,31.64723407,147.24,147.21,0.1006239]
[1726845352327,30.568484,147.24,147.21,0.1006239]
[1726845352640,23.776884,147.24,147.21,0.1006239]
[1726845352828,31.64723407,147.24,147.21,0.1006239]
[1726845353734,30.568484,147.24,147.21,0.1006239]
[1726845355148,24.85563407,147.24,147.21,0.1006239]
[1726845355448,31.64723407,147.24,147.21,0.1006239]
[1726845356850,38.71500404,147.24,147.21,0.1006239]
[1726845357349,37.63625397,147.24,147.21,0.1006239]
[1726845357551,38.71500404,147.24,147.21,0.1006239]
[1726845357939,79.40500404,147.24,147.21,0.1006239]
[1726845358344,31.92340404,147.24,147.21,0.1006239]
[1726845358548,7.06776997,147.24,147.21,0.1006239]
[1726845358831,6.7898,147.28,147.23,15.9760368]
[1726845359147,7.86905007,147.27,147.23,15.9760368]
[1726845359458,6.7907,147.26,147.23,15.9760368]
[1726845359655,40.69,147.29,147.23,15.9760368]
[1726845359656,6.7914,147.25,147.23,15.9760368]
[1726845359861,6.7907,147.26,147.23,15.9760368]
[1726845360159,40.69,147.29,147.23,0.2522368]
[1726845360359,6.7908,147.26,147.23,0.2522368]
[1726845360561,23.776884,147.24,147.23,0.2522368]
[1726845360738,30.568484,147.24,147.23,0.2522368]
[1726845361142,71.258484,147.24,147.23,0.2522368]
[1726845363061,1.07875007,147.26,147.23,0.2522368]
[1726845363369,6.7902,147.27,147.23,0.2522368]
[1726845363545,1.07875007,147.26,147.23,15.4867368]
[1726845363862,7.86975007,147.26,147.23,15.4867368]
[1726845364059,6.7916,147.24,147.23,0.2522368]
[1726845364364,6.7911,147.26,147.23,0.2522368]
[1726845364540,1.07875007,147.25,147.23,0.2522368]
[1726845365147,6.7911,147.26,147.23,0.2522368]
[1726845365357,6.7911,147.25,147.23,0.2522368]
[1726845366166,23.776884,147.24,147.23,0.2522368]
[1726845367761,30.568484,147.24,147.23,0.2522368]
[1726845367960,71.258484,147.24,147.23,0.2522368]
[1726845368458,72.33723407,147.24,147.23,0.2522368]
[1726845368844,71.258484,147.24,147.23,0.2522368]
[1726845369159,72.33723407,147.24,147.23,0.2522368]
[1726845369347,79.40596609,147.24,147.23,0.2522368]
[1726845370743,79.40596609,147.24,147.19,0.0695302]
[1726845370744,6.7934,147.2,147.19,0.0695302]
[1726845370938,6.7934,147.2,147.16,0.4146589]
[1726845370939,6.7948,147.17,147.16,0.4146589]
[1726845371143,7.87355007,147.17,147.16,0.4146589]
[1726845371351,48.56355007,147.17,147.16,0.4146589]
[1726845371860,47.4848,147.17,147.16,0.4146589]
[1726845372067,48.56355007,147.17,147.16,0.4146589]
[1726845372569,47.4867,147.13,147.12,0.1006239]
[1726845373070,6.7967,147.13,147.12,0.1006239]
[1726845373445,6.7961,147.15,147.12,0.1006239]
[1726845373648,1.07875007,147.14,147.12,0.1006239]
[1726845373852,6.7948,147.17,147.12,0.1006239]
[1726845374058,1.07875007,147.16,147.12,0.1006239]
[1726845374259,7.06873202,147.24,147.13,22.3227]
[1726845374456,24.04793202,147.24,147.13,22.3227]
[1726845374760,6.7944,147.18,147.13,22.3227]
[1726845374953,24.04793202,147.24,147.13,22.3227]
[1726845374954,6.7939,147.19,147.13,22.3227]
[1726845375160,6.7944,147.18,147.13,22.3227]
[1726845375355,7.87355007,147.17,147.13,22.3227]
[1726845375575,1.07875007,147.16,147.13,22.3227]
[1726845375750,23.776884,147.15,147.13,22.3227]
[1726845375951,24.85563407,147.14,147.13,22.3227]
[1726845376172,23.776884,147.14,147.13,22.3227]
[1726845376474,1.07875007,147.21,147.12,0.1006239]
[1726845376475,23.776884,147.13,147.12,0.1006239]
[1726845378264,40.69,147.22,147.12,0.1006239]
[1726845378572,1.07875007,147.21,147.12,0.1006239]
[1726845379160,6.7957,147.15,147.12,0.1006239]
[1726845379463,23.776884,147.13,147.12,0.1006239]
[1726845380294,7.06934678,147.18,147.12,0.1006239]
[1726845380295,23.776884,147.17,147.12,0.1006239]
[1726845380577,23.776884,147.15,147.12,0.1006239]
[1726845380765,1.07875007,147.14,147.12,0.1006239]
[1726845380973,23.776884,147.13,147.12,0.1006239]
[1726845381355,30.573584,147.13,147.12,0.1006239]
[1726845381565,30.573584,147.13,147.1,0.0695302]
[1726845381566,30.574484,147.11,147.1,0.0695302]
[1726845381876,31.65323407,147.11,147.1,0.0695302]
[1726845382882,30.574484,147.11,147.1,0.0695302]
[1726845383172,71.264484,147.11,147.1,0.0695302]
[1726845384656,30.574484,147.11,147.1,0.0695302]
[1726845385776,31.65323407,147.11,147.1,0.0695302]
[1726845386282,23.776884,147.11,147.1,0.0695302]
[1726845386781,47.1842,147.16,147.1,0.0695302]
[1726845386980,1.07875007,147.13,147.1,0.0695302]
[1726845387283,6.7963,147.14,147.1,0.0695302]
[1726845387503,6.7968,147.13,147.1,0.0695302]
[1726845387784,6.7963,147.14,147.1,0.0695302]
[1726845388168,6.7973,147.12,147.1,0.0695302]
[1726845388361,6.7968,147.13,147.1,0.0695302]
[1726845388879,6.7963,147.14,147.1,0.0695302]
[1726845389191,24.85563407,147.13,147.1,0.0695302]
[1726845389481,31.65243407,147.13,147.1,0.0695302]
[1726845390159,30.573684,147.13,147.1,0.0695302]
[1726845390357,6.7976,147.11,147.1,0.0695302]
[1726845390557,6.7976,147.11,147.05,6.4942]
[1726845390558,6.7981,147.1,147.09,0.5112291]
[1726845390980,30.574984,147.1,147.09,0.5112291]
[1726845393886,23.776884,147.1,147.09,0.5112291]
[1726845394082,30.574884,147.1,147.09,0.5112291]
[1726845396173,23.776884,147.06,147.04,15.1543]
[1726845396484,24.85563407,147.1,147.03,0.439921]
[1726845396485,23.776884,147.04,147.03,0.439921]
[1726845397394,31.65643407,147.04,147.03,0.439921]
[1726845397693,30.577684,147.04,147.03,0.439921]
[1726845397902,71.267684,147.04,147.03,0.439921]
[1726845398194,23.776884,147.04,147.03,0.439921]
[1726845398412,30.577684,147.04,147.03,0.439921]
[1726845398571,23.776884,147.04,147.03,0.439921]
[1726845398972,1.07875007,147.05,147.03,0.439921]
[1726845399402,6.8,147.06,147.03,0.439921]
[1726845399573,6.8005,147.05,147.03,0.439921]
[1726845399895,57.687,147.09,147.03,0.439921]
[1726845400271,6.8005,147.05,147.03,0.439921]
[1726845400890,6.8008,147.04,147.03,0.439921]
[1726845401477,30.577684,147.04,147.03,0.439921]
[1726845401691,31.65643407,147.04,147.03,0.439921]
[1726845402483,6.8017,147.02,147.01,0.0695302]
[1726845403578,7.88045007,147.02,147.01,0.0695302]
[1726845403792,6.8017,147.02,147.01,0.0695302]
[1726845404282,7.88015007,147.03,147.01,0.0695302]
[1726845404478,23.776884,147.02,147.01,0.0695302]
[1726845406603,31.65733407,147.02,147.01,0.0695302]
[1726845406787,30.578584,147.02,147.01,0.0695302]
[1726845406992,23.776884,147.02,147.01,0.0695302]
[1726845407793,30.578584,147.02,147.01,0.0695302]
[1726845408604,71.268584,147.02,147.01,0.0695302]
[1726845408906,30.578584,147.02,147.01,0.0695302]
[1726845409209,23.776884,147.02,147.01,0.0695302]
[1726845410809,24.85563407,147.02,147.01,0.0695302]
[1726845411305,23.776884,147.02,147.01,0.0695302]
[1726845411610,7.07459758,147.04,147.01,0.0695302]
[1726845411814,6.7988,147.09,147.03,6.193]
[1726845412107,7.07174684,147.1,147.03,6.193]
[1726845412308,40.69,147.13,147.03,6.193]
[1726845412614,13.8681318,147.12,147.03,6.193]
[1726845412993,1.18154397,147.15,147.03,6.193]
[1726845412994,6.7976,147.11,147.03,6.193]
[1726845413428,23.776884,147.1,147.03,6.193]
[1726845414095,23.776884,147.08,147.03,6.193]
[1726845414491,23.776884,147.06,147.03,6.193]
[1726845415500,23.776884,147.07,147.03,6.193]
[1726845415700,24.85563407,147.07,147.03,6.193]
[1726845415915,1.07875007,147.06,147.03,6.193]
[1726845416216,23.776884,147.05,147.03,6.193]
[1726845416393,1.07875007,147.06,147.03,6.193]
[1726845416600,23.776884,147.05,147.03,6.193]
[1726845417224,30.577284,147.05,147.02,15.7656]
[1726845417525,23.776884,147.03,147.01,0.0695302]
[1726845418204,30.578384,147.03,147.01,0.0695302]
[1726845420220,24.85563407,147.02,147.01,0.0695302]
[1726845420517,31.65733407,147.02,147.01,0.0695302]
[1726845421198,30.578584,147.02,147.01,0.0695302]
[1726845423704,37.65503635,147.02,147.01,0.0695302]
[1726845424021,38.73378642,147.02,147.01,0.0695302]
[1726845424400,37.65503635,147.02,147.01,0.0695302]
[1726845424602,38.73378642,147.02,147.01,0.0695302]
[1726845425227,30.85333635,147.02,147.01,0.0695302]
[1726845425524,31.93208642,147.02,147.01,0.0695302]
[1726845425735,7.07645235,147.02,147.01,0.0695302]
[1726845425900,16.9993,147.07,147.01,0.0695302]
[1726845426099,6.8015,147.03,147.01,0.0695302]
[1726845426323,7.88045007,147.02,147.01,0.0695302]
[1726845426517,6.8017,147.02,147.01,0.0695302]
[1726845426708,7.07458219,147.05,147.01,0.0695302]
[1726845427123,1.07875007,147.04,147.01,0.0695302]
[1726845427297,16.9956,147.1,147.01,0.0695302]
[1726845427501,1.07875007,147.09,147.01,0.0695302]
[1726845427722,6.7996,147.07,147.01,0.0695302]
[1726845427930,7.07335213,147.09,147.01,0.0695302]
[1726845427931,6.8,147.06,147.01,0.0695302]
[1726845428105,7.87915007,147.05,147.01,0.0695302]
[1726845428299,6.8004,147.05,147.01,0.0695302]
[1726845428500,7.07335213,147.09,147.01,0.0695302]
[1726845428812,7.07335213,147.09,147.02,6.4684]
[1726845429028,1.18154397,147.15,147.03,17.72812341]
[1726845429322,57.8787,147.16,147.04,6.3927]
[1726845429323,7.07137895,147.13,147.04,6.3927]
[1726845429521,13.86817895,147.13,147.05,1.35976753]
[1726845429827,13.86817895,147.13,147.04,6.3927]
[1726845430020,6.7972,147.12,147.04,6.3927]
[1726845430224,1.07875007,147.11,147.04,6.3927]
[1726845430415,7.07137895,147.13,147.05,1.3598623]
[1726845430614,7.07137895,147.13,147.04,6.3927]
[1726845430823,6.7975,147.12,147.04,6.3927]
[1726845431129,13.86807895,147.13,147.05,1.3597673]
[1726845431824,7.07137895,147.13,147.04,56.3927]
[1726845432237,7.07137895,147.13,147.05,15.7354]
[1726845432614,1.07875007,147.12,147.05,15.7354]
[1726845432928,6.7977,147.11,147.05,15.7354]
[1726845433130,23.776884,147.1,147.05,15.7354]
[1726845433317,23.776884,147.1,147.05,17.09523139]
[1726845433517,6.7977,147.11,147.05,17.09523139]
[1726845433518,23.776884,147.12,147.06,1.35982906]
[1726845433916,30.574184,147.12,147.05,15.7354]
[1726845434122,23.776884,147.12,147.05,15.7354]
[1726845434637,30.574184,147.12,147.05,15.7354]
[1726845434840,31.65293407,147.12,147.05,15.7354]
[1726845435131,23.776884,147.1,147.05,15.7354]
[1726845435527,24.85563407,147.1,147.05,15.7354]
[1726845435841,30.574984,147.1,147.05,17.09536101]
[1726845436022,23.776884,147.1,147.05,15.7354]
[1726845436224,31.65373407,147.1,147.05,15.7354]
[1726845436442,30.574984,147.1,147.05,15.7354]
[1726845437125,23.776884,147.08,147.05,15.7354]
[1726845437515,1.07875007,147.07,147.05,15.7354]
[1726845437721,23.776884,147.06,147.05,15.7354]
[1726845437921,23.776884,147.06,147.04,6.3927]
[1726845438324,24.85563407,147.05,147.04,6.3927]
[1726845438732,30.577784,147.04,147.01,16.0676302]
[1726845439034,30.578584,147.02,147.01,16.0676302]
[1726845439234,23.776884,147.02,147.01,16.0676302]
[1726845440122,23.776884,147.02,147.01,0.0695302]
[1726845440123,30.578584,147.02,147.01,0.0695302]
[1726845440620,23.776884,147.02,147.01,0.0695302]
[1726845441434,24.85563407,147.02,147.01,0.0695302]
[1726845441753,31.65733407,147.02,147.01,0.0695302]
[1726845442539,30.578584,147.02,147.01,0.0695302]
[1726845445228,30.578584,147.02,146.97,0.3392971]
[1726845445549,30.580484,146.98,146.97,0.3392971]
[1726845445736,31.65923407,146.98,146.97,0.3392971]
[1726845446041,23.776884,146.98,146.97,0.3392971]
[1726845447227,31.65923407,146.98,146.97,0.3392971]
[1726845447432,30.580484,146.98,146.97,0.3392971]
[1726845448020,31.65923407,146.98,146.97,0.3392971]
[1726845449930,38.73835119,146.98,146.97,0.3392971]
[1726845450546,37.65960112,146.98,146.97,0.3392971]
[1726845450721,30.85600112,146.98,146.97,0.3392971]
[1726845450925,23.776884,146.98,146.97,0.3392971]
[1726845451122,23.776884,146.98,146.93,6.5413]
[1726845451322,13.88081838,146.99,146.94,0.4115677]
[1726845451522,7.07761838,146.99,146.94,0.4115677]
[1726845451742,13.88091838,146.99,146.94,0.4115677]
[1726845452039,7.07761838,146.99,146.94,0.4115677]
[1726845452222,17.004,147.03,146.94,0.4115677]
[1726845452422,6.8027,147.0,146.94,0.4115677]
[1726845452723,6.8023,147.01,146.95,16.376]
[1726845452941,1.07875007,147.0,146.95,16.376]
[1726845453323,6.8037,146.98,146.95,16.376]
[1726845453827,6.8028,147.0,146.95,16.376]
[1726845454038,23.776884,146.99,146.95,16.376]
[1726845455123,23.776884,147.0,146.95,16.376]
[1726845455634,23.776884,147.01,146.95,16.376]
[1726845455944,24.85563407,147.01,146.95,16.376]
[1726845457240,30.579184,147.01,146.96,1.36085048]
[1726845457440,7.07666991,147.02,146.98,6.2814]
[1726845457627,6.8,147.06,147.0,15.9736]
[1726845457820,6.8,147.06,147.01,1.36028544]
[1726845458043,6.7995,147.07,147.0,15.9736]
[1726845458739,7.07394612,147.08,147.01,1.36010972]
[1726845458942,17.0960533,147.13,147.01,1.36010972]
[1726845459249,7.07245553,147.11,147.02,6.4675]
[1726845459424,6.799,147.08,147.02,6.4675]
[1726845459625,7.07245553,147.11,147.02,6.4675]
[1726845460128,7.07245553,147.11,147.03,16.3861]
[1726845460322,7.07245553,147.11,147.05,20.0]
[1726845460539,0.1037533,147.13,147.07,6.4675]
[1726845460745,0.1037533,147.13,147.09,15.4253]
[1726845462837,6.7977,147.11,147.09,15.4253]
[1726845463031,30.574884,147.1,147.09,15.4253]
[1726845463233,6.799,147.08,147.07,6.4675]
[1726845463432,23.776884,147.07,147.05,16.4774]
[1726845463647,23.776884,147.1,147.05,16.4774]
[1726845463855,23.776884,147.07,147.05,16.4774]
[1726845464154,23.776884,147.1,147.05,16.4774]
[1726845464451,23.776884,147.11,147.05,16.4774]
[1726845464651,6.7972,147.12,147.05,16.4774]
[1726845464956,0.1037533,147.13,147.05,16.4774]
[1726845465137,0.1037533,147.13,147.06,1.35958722]
[1726845465338,0.1037533,147.13,147.06,21.35958722]
[1726845465555,0.1037533,147.13,147.06,20.0]
[1726845465752,0.1037533,147.13,147.07,6.2381]
[1726845466439,0.1037533,147.13,147.07,56.2381]
[1726845467052,6.9004533,147.13,147.07,6.2381]
[1726845468043,24.85563407,147.12,147.07,6.2381]
[1726845468232,6.7982,147.1,147.07,6.2381]
[1726845468662,30.574384,147.12,147.07,6.2381]
[1726845469235,23.776884,147.12,147.07,6.2381]
[1726845469540,1.07875007,147.11,147.07,6.2381]
[1726845469936,30.574284,147.12,147.07,6.2381]
[1726845470530,23.776884,147.1,147.07,6.2381]
[1726845470846,6.7981,147.1,147.07,6.2381]
[1726845471356,6.7976,147.11,147.07,6.2381]
[1726845471945,7.07193789,147.12,147.08,1.35970958]
[1726845472142,7.07193789,147.12,147.09,1.35957998]
[1726845472356,0.1037533,147.13,147.09,1.35957998]
[1726845472564,0.1037533,147.13,147.09,51.35957998]
[1726845473055,0.1037533,147.13,147.09,50.0]
[1726845473634,0.1037533,147.13,147.08,20.0]
[1726845474153,0.1037533,147.13,147.09,50.0]
[1726845475065,0.1037533,147.13,147.08,20.0]
[1726845475275,0.1037533,147.13,147.07,56.2381]
[1726845475557,0.1037533,147.13,147.08,1.35942937]
[1726845475760,0.1037533,147.13,147.07,6.2381]
[1726845477056,30.574184,147.12,147.07,6.2381]
[1726845477761,23.776884,147.12,147.07,6.2381]
[1726845477934,30.574384,147.12,147.07,6.2381]
[1726845478136,0.1037533,147.13,147.08,1.35963316]
[1726845478361,0.1037533,147.13,147.09,1.35945885]
[1726845479453,0.1037533,147.13,147.09,50.0]
[1726845480359,0.1037533,147.13,147.11,50.0]
[1726845480655,0.1037533,147.13,147.12,1.35901484]
[1726845481038,0.1037533,147.13,147.12,43.73731519]
[1726845481238,0.3109438,147.18,147.12,43.73731519]
[1726845481444,0.3109438,147.18,147.13,50.0]
[1726845482662,0.3109438,147.18,147.16,20.0]
[1726845482873,0.3109438,147.18,147.17,70.0]
[1726845483159,0.380474,147.24,147.17,91.0905]
[1726845483339,0.380474,147.24,147.18,1.35835116]
[1726845483540,0.380474,147.24,147.2,50.0]
[1726845483740,0.380474,147.24,147.22,50.0]
[1726845483964,0.380474,147.24,147.23,21.35799051]
[1726845484168,0.380474,147.24,147.23,27.38419051]
[1726845484377,0.1006239,147.25,147.24,65.3173]
[1726845485248,0.1006239,147.25,147.24,85.3173]